Workbook

Sheet Sheet1
A1: Colden, NY 14033 | B1: 2021 Monthly Rent | C1: 2022 Monthly Rent | D1: 2023 Monthly Rent | E1: 2024 Monthly Rent | F1: 2025 Monthly Rent
A2: #1 - SW | B2: 510 | C2: 520 | D2: 535 | E2: 550 | F2: 565
A3: #2 - SW | B3: 510 | C3: 520 | D3: 535 | E3: 550 | F3: 565
A4: #3 - SW resident owned unit | B4: 535 | C4: 545 | D4: 560 | E4: 580 | F4: 390
A5: #4 - SW - vacant unit | B5: 350 | C5: 360 | D5: 360 | E5: 0 | F5: 0
A6: #5 - SW | B6: 450 | C6: 450 | D6: 460 | E6: 470 | F6: 480
A7: #6 - SW resident owned unit | B7: 355 | C7: 360 | D7: 370 | E7: 380 | F7: 390
A8: #7 - SW resident owned unit | B8: 355 | C8: 360 | D8: 370 | E8: 380 | F8: 390
A9: #8 - SW | B9: 510 | C9: 520 | D9: 535 | E9: 550 | F9: 565
A10: #9 - SW | B10: 525 | C10: 550 | D10: 565 | E10: 600 | F10: 600
A11: #10 - vacant pad
A12: #11 - SW resident owned unit | B12: 355 | C12: 360 | D12: 370 | E12: 380 | F12: 390
A13: #12 - SW resident owned unit | B13: 510 | C13: 520 | D13: 370 | E13: 380 | F13: 390
A14: #13 - SW resident owned unit | B14: 635 | C14: 645 | D14: 660 | E14: 380 | F14: 390
A15: #14 - SW resident owned unit | B15: 355 | C15: 360 | D15: 370 | E15: 380 | F15: 390
A16: #15 - house | B16: 950 | C16: 960 | D16: 1000 | E16: 950 | F16: 975
A17: #16 - SW | B17: 535 | C17: 545 | D17: 560 | E17: 575 | F17: 590
A18: #17 - DW | B18: 785 | C18: 800 | D18: 820 | E18: 840 | F18: 865
A19: #22 - DW | B19: 710 | C19: 725 | D19: 740 | E19: 765 | F19: 785
A20: #23 - DW resident owned unit | B20: 400 | C20: 425 | D20: 425 | E20: 450 | F20: 460
A21: total monthly income | B21: =SUM(B2:B20) -> 9335 | C21: =SUM(C2:C20) -> 9525 | D21: =SUM(D2:D20) -> 9605 | E21: =SUM(E2:E20) -> 9160 | F21: =SUM(F2:F20) -> 9180
A22: total annual income | B22: =SUM(B21*12) -> 112020 | C22: =SUM(C21*12) -> 114300 | D22: =SUM(D21*12) -> 115260 | E22: =SUM(E21*12) -> 109920 | F22: =SUM(F21*12) -> 110160
A23: * #12 sold unit in 2022
A24: * #13 sold unit in 2023
A25: * #3 sold unit in 2024
A26: Annual Expenses | B26: 2021 | C26: 2022 | D26: 2023 | E26: 2024 | F26: 2025
A27: Taxes | B27: 13030 | C27: 13883 | D27: 14079 | E27: 14397 | F27: 14750 | G27: 2025 estimated
A28: Insurance | B28: 3787 | C28: 3896 | D28: 3987 | E28: 4090 | F28: 4800 | G28: exact
A29: Utilities | B29: 4609 | C29: 6921 | D29: 5731 | E29: 8625 | F29: 7500 | G29: 2025 estimated
A30: Dumpster | B30: 2558 | C30: 3546 | D30: 2991 | E30: 2884 | F30: 3500 | G30: exact
A31: Snow Plowing | B31: 2718 | C31: 2718 | D31: 2600 | E31: 2718 | F31: 2936 | G31: exact
A32: Lawn Mowing | B32: 3000 | C32: 3000 | D32: 3000 | E32: 3806 | F32: 4893 | G32: exact
A33: Septic Tanks Pumped | B33: 2343 | C33: 2724 | D33: 2528 | E33: 2528 | F33: 3648 | G33: exact
A34: Repairs and Maintenace | B34: 17339 | C34: 13834 | D34: 18869 | E34: 17586 | F34: 3935 | G34: 2025 through 06/15
A35: total annual expenses | B35: =SUM(B27:B34) -> 49384 | C35: =SUM(C27:C34) -> 50522 | D35: =SUM(D27:D34) -> 53785 | E35: =SUM(E27:E34) -> 56634 | F35: =SUM(F27:F33) -> 42027
A37: net annual income | B37: =SUM(B22-B35) -> 62636 | C37: =SUM(C22-C35) -> 63778 | D37: =SUM(D22-D35) -> 61475 | E37: =SUM(E22-E35) -> 53286 | F37: =SUM(F22-F35) -> 68133
